fUSD/lending_fUSD_20260410
["ID","MTS","AMOUNT","RATE_DAILY","PERIOD"]
[420212347,1775785848589,-151.0,0.00015709,2]
[420212348,1775785848599,-151.0,0.00015709,2]
[420212349,1775785848609,-151.0,0.00015709,2]
[420212350,1775785848631,-151.0,0.00015709,2]
[420212351,1775785848640,-210.269897,0.00015709,2]
[420212352,1775785848650,-151.0,0.00015709,2]
[420212353,1775785848673,-151.0,0.00015709,2]
[420212354,1775785848683,-210.269897,0.00015709,2]
[420212355,1775785848693,-174.224096,0.00015709,2]
[420212356,1775785848707,-151.0,0.00015709,2]
[420212357,1775785848720,-151.0,0.00015709,2]
[420212358,1775785848743,-208.700873,0.00015709,2]
[420212359,1775785848753,-151.0,0.00015709,2]
[420212360,1775785848765,-151.0,0.00015709,2]
[420212361,1775785848785,-151.0,0.00015709,2]
[420212362,1775785848817,-151.0,0.00015709,2]
[420212363,1775785848837,-151.0,0.00015709,2]
[420212364,1775785848851,-151.0,0.00015709,2]
[420212365,1775785848882,-151.0,0.00015709,2]
[420212366,1775785848918,-151.0,0.00015709,2]
[420212367,1775785848937,-151.0,0.00015709,2]
[420212368,1775785848981,-151.0,0.00015709,2]
[420212369,1775785848998,-153.027676,0.00015709,2]
[420212370,1775785849009,-151.0,0.00015709,2]
[420212371,1775785849026,-151.0,0.00015709,2]
[420212372,1775785849037,-151.0,0.00015709,2]
[420212373,1775785849060,-151.0,0.00015709,2]
[420212374,1775785849069,-151.0,0.00015709,2]
[420212375,1775785849078,-259.262432,0.00015709,2]
[420212376,1775785849089,-151.0,0.00015709,2]
[420212377,1775785849103,-151.0,0.00015709,2]
[420212378,1775785849113,-166.246111,0.00015709,2]
[420212379,1775785849125,-1000.0,0.00015729,2]
[420212380,1775785849134,-168.0,0.00015733,2]
[420212381,1775785849146,-488.81683227,0.00015733,2]
[420212382,1775785849156,-2116.59,0.00015738,2]
[420212383,1775785849166,-1000.0,0.0001574,2]
[420212384,1775785849194,-750.54982673,0.00015741,2]
[420212385,1775785849203,-1000.0,0.00015748,2]
[420212386,1775785849213,-152.0,0.00015757,11]
[420212387,1775785849238,-152.0,0.00015757,5]
[420212388,1775785849248,-1000.0,0.00015763,2]
[420212389,1775785849265,-1000.0,0.00015765,2]
[420212390,1775785849285,-459.92938606,0.0001577,2]
[420212391,1775785849299,-151.0,0.00015771,2]
[420212392,1775785849320,-231.773515,0.00015771,2]
[420212393,1775785849331,-231.773515,0.00015771,2]
[420212394,1775785849343,-231.773515,0.00015771,2]
[420212395,1775785849373,-231.773515,0.00015771,2]
[420212396,1775785849386,-151.0,0.00015771,2]
[420212397,1775785849398,-153.854867,0.00015771,2]
[420212398,1775785849423,-151.0,0.00015771,2]
[420212399,1775785849432,-151.0,0.00015771,2]
[420212400,1775785849448,-210.269897,0.00015771,2]
[420212401,1775785849468,-151.0,0.00015771,2]
[420212402,1775785849480,-210.269897,0.00015771,2]
[420212403,1775785849490,-151.0,0.00015771,2]
[420212404,1775785849503,-151.0,0.00015771,2]
[420212405,1775785849514,-151.0,0.00015771,2]
[420212406,1775785849529,-210.269897,0.00015771,2]
[420212407,1775785849538,-151.0,0.00015771,2]
[420212408,1775785849550,-210.269897,0.00015771,2]
[420212409,1775785849560,-151.0,0.00015771,2]
[420212410,1775785849575,-151.0,0.00015771,2]
[420212411,1775785849585,-151.0,0.00015771,2]
[420212412,1775785849595,-151.0,0.00015771,2]
[420212413,1775785849604,-151.0,0.00015771,2]
[420212414,1775785849618,-151.0,0.00015771,2]
[420212415,1775785849627,-151.0,0.00015771,2]
[420212416,1775785849638,-151.0,0.00015771,2]
[420212417,1775785849648,-151.0,0.00015773,2]
[420212418,1775785849663,-151.0,0.00015773,2]
[420212419,1775785849673,-151.0,0.00015773,2]
[420212420,1775785849683,-151.0,0.00015773,2]
[420212421,1775785849693,-488.81683227,0.00015775,2]
[420212422,1775785849703,-601.0,0.00015789,2]
[420212423,1775785849713,-155.335,0.00015793,2]
[420212424,1775785849723,-1000.0,0.00015793,2]
[420212425,1775785849734,-5888.0,0.00015794,2]
[420212426,1775785849744,-151.0,0.00015794,2]
[420212427,1775785849754,-151.0,0.00015794,2]
[420212428,1775785849766,-151.0,0.00015794,2]
[420212429,1775785849777,-151.0,0.00015794,2]
[420212430,1775785849789,-151.0,0.00015794,2]
[420212431,1775785849807,-172.920049,0.00015794,2]
[420212432,1775785849817,-172.920049,0.00015794,2]
[420212433,1775785849840,-172.920049,0.00015794,2]
[420212434,1775785849849,-151.0,0.00015794,2]
[420212435,1775785849871,-172.920049,0.00015794,2]
[420212436,1775785849883,-151.0,0.00015794,2]
[420212437,1775785849897,-267.189378,0.00015794,2]
[420212438,1775785849918,-151.0,0.00015794,2]
[420212439,1775785849941,-151.0,0.00015794,2]
[420212440,1775785849951,-151.0,0.00015794,2]
[420212441,1775785849961,-151.0,0.00015794,2]
[420212442,1775785849987,-246.611064,0.00015794,2]
[420212443,1775785849999,-151.0,0.00015794,2]
[420212444,1775785850010,-151.0,0.00015794,2]
[420212445,1775785850047,-151.0,0.00015794,2]
[420212446,1775785850056,-151.0,0.00015794,2]
[420212447,1775785850083,-151.0,0.00015794,2]
[420212448,1775785850093,-151.0,0.00015794,2]
[420212449,1775785850103,-151.0,0.00015794,2]
[420212450,1775785850134,-151.0,0.00015794,2]
[420212451,1775785850143,-151.0,0.00015794,2]
[420212452,1775785850153,-368.72426659,0.00015795,7]
[420212453,1775785850178,-1000.0,0.00015801,2]
[420212454,1775785850187,-1021.29004014,0.00015802,2]
[420212455,1775785850197,-601.0,0.00015803,2]
[420212456,1775785850218,-151.0,0.00015803,2]
[420212457,1775785850228,-151.0,0.00015803,2]
[420212458,1775785850237,-157.117046,0.00015803,2]
[420212459,1775785850250,-157.451103,0.00015803,2]
[420212460,1775785850276,-264.9205,0.00015803,2]
[420212461,1775785850285,-197.238714,0.00015803,2]
[420212462,1775785850304,-264.9205,0.00015803,2]
[420212463,1775785850318,-197.238714,0.00015803,2]
[420212464,1775785850327,-264.9205,0.00015803,2]
[420212465,1775785850345,-197.238714,0.00015803,2]
[420212466,1775785850360,-151.0,0.00015803,2]
[420212467,1775785850370,-264.9205,0.00015803,2]
[420212468,1775785850387,-151.0,0.00015803,2]
[420212469,1775785850399,-197.238714,0.00015803,2]
[420212470,1775785850409,-151.0,0.00015803,2]
[420212471,1775785850418,-321.0,0.00015803,5]
[420212472,1775785850439,-150.0,0.00015805,2]
[420212473,1775785850450,-268.347184,0.00015808,2]
[420212474,1775785850467,-268.347184,0.00015808,2]
[420212475,1775785850478,-268.347184,0.00015808,2]
[420212476,1775785850492,-268.347184,0.00015808,2]
[420212477,1775785850503,-150.0,0.00015813,2]
[420212478,1775785850515,-248.36398266,0.00015816,2]
[420212479,1775785850530,-488.81683227,0.00015817,2]
[420212480,1775785850541,-500.0,0.00015822,2]
[420212481,1775785850551,-200.0,0.00015822,2]
[420212482,1775785850570,-1000.0,0.00015823,2]
[420212483,1775785850590,-151.60687022,0.00015838,2]
[420212484,1775785850602,-150.0,0.0001584,7]
[420212485,1775785850613,-150.0,0.00015849,2]
[420212486,1775785850630,-151.0,0.00015853,2]
[420212487,1775785850642,-151.0,0.00015853,2]
[420212488,1775785850659,-151.0,0.00015853,2]
[420212489,1775785850669,-287.10974,0.00015853,2]
[420212490,1775785850700,-151.0,0.00015853,2]
[420212491,1775785850710,-151.0,0.00015853,2]
[420212492,1775785850734,-151.0,0.00015853,2]
[420212493,1775785850744,-151.0,0.00015853,2]
[420212494,1775785850756,-151.0,0.00015853,2]
[420212495,1775785850789,-151.0,0.00015853,2]
[420212496,1775785850807,-151.0,0.00015853,2]
[420212497,1775785850818,-151.0,0.00015853,2]
[420212498,1775785850844,-151.0,0.00015853,2]
[420212499,1775785850854,-500.0,0.00015853,2]
[420212500,1775785850868,-211.0,0.00015853,5]
[420212501,1775785850901,-3525.0,0.00015854,2]
[420212502,1775785850912,-1348.282,0.00015854,2]
[420212503,1775785850927,-1047.0,0.00015854,2]
[420212504,1775785850947,-622.0,0.00015854,2]
[420212505,1775785850958,-1265.485,0.00015854,2]
[420212506,1775785850975,-3773.0,0.00015854,2]
[420212507,1775785851001,-415.0,0.00015854,2]
[420212508,1775785851015,-2476.439,0.00015854,2]
[420212509,1775785851026,-488.81683227,0.00015858,2]
[420212510,1775785851038,-441.43578177,0.00015862,2]
[420212511,1775785851052,-601.0,0.00015862,2]
[420212512,1775785851062,-1000.0,0.00015863,2]
[420212513,1775785851073,-1000.0,0.00015865,2]
[420212514,1775785851096,-601.0,0.00015867,2]
[420212515,1775785851106,-162.3905,0.0001587,2]
[420212516,1775785851127,-162.3905,0.0001588,2]
[420212517,1775785851141,-506.0,0.00015887,4]
[420212518,1775785851151,-151.0,0.00015888,2]
[420212519,1775785851168,-151.0,0.00015888,2]
[420212520,1775785851188,-374.10266,0.00015888,2]
[420212521,1775785851203,-151.0,0.00015888,2]
[420212522,1775785851221,-165.844819,0.00015888,2]
[420212523,1775785851230,-165.844819,0.00015888,2]
[420212524,1775785851259,-374.10266,0.00015888,2]
[420212525,1775785851269,-165.844819,0.00015888,2]
[420212526,1775785851290,-374.10266,0.00015888,2]
[420212527,1775785851302,-165.844819,0.00015888,2]
[420212528,1775785851311,-374.10266,0.00015888,2]
[420212529,1775785851326,-164.002776,0.00015888,2]
[420212530,1775785851336,-435.650314,0.00015888,2]
[420212531,1775785851354,-164.002776,0.00015888,2]
[420212532,1775785851364,-435.650314,0.00015888,2]
[420212533,1775785851374,-164.002776,0.00015888,2]
[420212534,1775785851393,-435.650314,0.00015888,2]
[420212535,1775785851403,-164.002776,0.00015888,2]
[420212536,1775785851421,-151.0,0.00015888,2]
[420212537,1775785851726,-435.650314,0.00015888,2]
[420212538,1775785851736,-151.0,0.00015888,2]
[420212539,1775785851748,-151.0,0.00015888,2]
[420212540,1775785851762,-151.0,0.00015888,2]
[420212541,1775785851775,-222.145789,0.00015888,2]
[420212542,1775785851789,-151.0,0.00015888,2]
[420212543,1775785851809,-151.0,0.00015888,2]
[420212544,1775785851819,-162.368869,0.00015888,2]
[420212545,1775785851832,-151.0,0.00015888,2]
[420212546,1775785851861,-162.368869,0.00015888,2]
[420212547,1775785851870,-151.0,0.00015888,2]
[420212548,1775785851887,-151.0,0.00015888,2]
[420212549,1775785851903,-151.0,0.00015888,2]
[420212550,1775785851916,-151.0,0.00015888,2]
[420212551,1775785851928,-162.368869,0.00015888,2]
[420212552,1775785851940,-293.025294,0.00015888,2]
[420212553,1775785851952,-151.0,0.00015888,2]
[420212554,1775785851969,-151.0,0.00015888,2]
[420212555,1775785851982,-162.368869,0.00015888,2]
[420212556,1775785851991,-177.66864,0.00015888,2]
[420212557,1775785852001,-164.442272,0.00015888,2]
[420212558,1775785852019,-151.0,0.00015888,2]
[420212559,1775785852029,-151.0,0.00015888,2]
[420212560,1775785852043,-151.0,0.00015888,2]
[420212561,1775785852054,-164.442272,0.00015888,2]
[420212562,1775785852074,-151.0,0.00015888,2]
[420212563,1775785852084,-164.442272,0.00015888,2]
[420212564,1775785852102,-156.358552,0.00015888,2]
[420212565,1775785852116,-183.82193,0.00015888,2]
[420212566,1775785852126,-164.442272,0.00015888,2]
[420212567,1775785852144,-151.0,0.00015888,2]
[420212568,1775785852157,-183.82193,0.00015888,2]
[420212569,1775785852172,-151.0,0.00015888,2]
[420212570,1775785852190,-151.0,0.00015888,2]
[420212571,1775785852223,-183.82193,0.00015888,2]
[420212572,1775785852235,-151.0,0.00015888,2]
[420212573,1775785852263,-183.82193,0.00015888,2]
[420212574,1775785852274,-151.0,0.00015888,2]
[420212575,1775785852292,-301.973836,0.00015888,2]
[420212576,1775785852309,-233.294558,0.00015888,2]
[420212577,1775785852319,-151.0,0.00015888,2]
[420212578,1775785852342,-233.294558,0.00015888,2]
[420212579,1775785852353,-151.0,0.00015888,2]
[420212580,1775785852363,-233.294558,0.00015888,2]
[420212581,1775785852383,-622.691617,0.00015888,2]
[420212582,1775785852394,-151.0,0.00015888,2]
[420212583,1775785852404,-151.0,0.00015888,2]
[420212584,1775785852423,-233.294558,0.00015888,2]
[420212585,1775785852433,-622.691617,0.00015888,2]
[420212586,1775785852443,-622.691617,0.00015888,2]
[420212587,1775785852457,-413.7726,0.00015888,2]
[420212588,1775785852469,-622.691617,0.00015888,2]
[420212589,1775785852479,-413.7726,0.00015888,2]
[420212590,1775785852489,-151.0,0.00015888,2]
[420212591,1775785852509,-151.0,0.00015888,2]
[420212592,1775785852520,-413.7726,0.00015888,2]
[420212593,1775785852533,-189.880298,0.00015888,2]
[420212594,1775785852549,-151.0,0.00015888,2]
[420212595,1775785852561,-151.0,0.00015888,2]
[420212596,1775785852580,-413.7726,0.00015888,2]
[420212597,1775785852590,-151.0,0.00015888,2]
[420212598,1775785852599,-199.786779,0.00015888,2]
[420212599,1775785852620,-161.260619,0.00015888,2]
[420212600,1775785852633,-151.0,0.00015888,2]
[420212601,1775785852643,-151.0,0.00015888,2]
[420212602,1775785852656,-199.786779,0.00015888,2]
[420212603,1775785852671,-151.0,0.00015888,2]
[420212604,1775785852682,-199.786779,0.00015888,2]
[420212605,1775785852695,-151.0,0.00015888,2]
[420212606,1775785852707,-151.0,0.00015888,2]
[420212607,1775785852725,-151.0,0.00015888,2]
[420212608,1775785852738,-199.786779,0.00015888,2]
[420212609,1775785852751,-605.178857,0.00015888,2]
[420212610,1775785852780,-243.778052,0.00015888,2]
[420212611,1775785852795,-605.178857,0.00015888,2]
[420212612,1775785852830,-605.178857,0.00015888,2]
[420212613,1775785852853,-160.482107,0.00015888,2]
[420212614,1775785852880,-605.178857,0.00015888,2]
[420212615,1775785852892,-160.482107,0.00015888,2]
[420212616,1775785852954,-160.482107,0.00015888,2]
[420212617,1775785852973,-160.482107,0.00015888,2]
[420212618,1775785852996,-151.0,0.00015888,2]
[420212619,1775785853011,-151.0,0.00015888,2]
[420212620,1775785853022,-151.0,0.00015888,2]
[420212621,1775785853039,-151.0,0.00015888,2]
[420212622,1775785853055,-151.0,0.00015888,2]
[420212623,1775785853075,-151.0,0.00015888,2]
[420212624,1775785853085,-151.0,0.00015888,2]
[420212625,1775785853099,-225.897545,0.00015888,2]
[420212626,1775785853112,-151.0,0.00015888,2]
[420212627,1775785853121,-151.0,0.00015888,2]
[420212628,1775785853131,-161.166246,0.00015888,2]
[420212629,1775785853143,-151.0,0.00015888,2]
[420212630,1775785853156,-161.166246,0.00015888,2]
[420212631,1775785853165,-161.166246,0.00015888,2]
[420212632,1775785853180,-153.599312,0.00015888,2]
[420212633,1775785853190,-161.166246,0.00015888,2]
[420212634,1775785853202,-153.599312,0.00015888,2]
[420212635,1775785853212,-153.599312,0.00015888,2]
[420212636,1775785853225,-153.599312,0.00015888,2]
[420212637,1775785853235,-193.774017,0.00015888,2]
[420212638,1775785853246,-353.602754,0.00015888,2]
[420212639,1775785853255,-151.0,0.00015888,2]
[420212640,1775785853274,-193.774017,0.00015888,2]
[420212641,1775785853285,-353.602754,0.00015888,2]
[420212642,1775785853295,-151.0,0.00015888,2]
[420212643,1775785853311,-151.0,0.00015888,2]
[420212644,1775785853322,-193.774017,0.00015888,2]
[420212645,1775785853332,-353.602754,0.00015888,2]
[420212646,1775785853344,-151.0,0.00015888,2]
[420212647,1775785853356,-193.774017,0.00015888,2]
[420212648,1775785853368,-353.602754,0.00015888,2]
[420212649,1775785853378,-151.0,0.00015888,2]
[420212650,1775785853389,-151.0,0.00015888,2]
[420212651,1775785853399,-151.0,0.00015888,2]
[420212652,1775785853410,-336.812757,0.00015888,2]
[420212653,1775785853421,-151.0,0.00015888,2]
[420212654,1775785853434,-336.812757,0.00015888,2]
[420212655,1775785853445,-336.812757,0.00015888,2]
[420212656,1775785853455,-151.843378,0.00015888,2]
[420212657,1775785853466,-336.812757,0.00015888,2]
[420212658,1775785853481,-151.843378,0.00015888,2]
[420212659,1775785853492,-151.843378,0.00015888,2]
[420212660,1775785853502,-151.843378,0.00015888,2]
[420212661,1775785853518,-151.0,0.00015888,2]
[420212662,1775785853531,-290.939423,0.00015888,2]
[420212663,1775785853555,-151.0,0.00015888,2]
[420212664,1775785853570,-151.0,0.00015888,2]
[420212665,1775785853588,-151.0,0.00015888,2]
[420212666,1775785853601,-231.773515,0.00015893,2]
[420212667,1775785853627,-231.773515,0.00015893,2]
[420212668,1775785853641,-231.773515,0.00015893,2]
[420212669,1775785853654,-231.773515,0.00015893,2]
[420212670,1775785853665,-151.0,0.00015893,2]
[420212671,1775785853675,-229.303565,0.00015893,2]
[420212672,1775785853689,-151.0,0.00015893,2]
[420212673,1775785853702,-151.0,0.00015893,2]
[420212674,1775785853712,-151.0,0.00015893,2]
[420212675,1775785853729,-151.0,0.00015893,2]
[420212676,1775785853753,-151.0,0.00015893,2]
[420212677,1775785853763,-276.9527012,0.00015893,2]
[420212678,1775785853773,-1000.0,0.00015897,2]
[420212679,1775785853799,-210.269897,0.00015899,2]
[420212680,1775785853809,-151.0,0.00015899,2]
[420212681,1775785853820,-210.269897,0.00015899,2]
[420212682,1775785853850,-151.0,0.00015899,2]
[420212683,1775785853868,-151.0,0.00015899,2]
[420212684,1775785853907,-173.476365,0.00015899,2]
[420212685,1775785853927,-210.269897,0.00015899,2]
[420212686,1775785853971,-151.0,0.00015899,2]
[420212687,1775785853986,-210.269897,0.00015899,2]
[420212688,1775785854006,-151.0,0.00015899,2]
[420212689,1775785854017,-151.0,0.00015899,2]
[420212690,1775785854030,-151.0,0.00015899,2]
[420212691,1775785854062,-151.0,0.00015899,2]
[420212692,1775785854072,-151.0,0.00015899,2]
[420212693,1775785854083,-151.0,0.00015899,2]
[420212694,1775785854104,-183.393732,0.00015899,2]
[420212695,1775785854115,-500.0,0.00015899,2]
[420212696,1775785854127,-500.0,0.00015899,2]
[420212697,1775785854150,-157.0,0.000159,3]
[420212698,1775785854159,-157.0,0.000159,3]
[420212699,1775785854170,-157.0,0.000159,2]
[420212700,1775785854183,-157.0,0.000159,2]
[420212701,1775785854194,-1000.0,0.000159,2]
[420212702,1775785854204,-1000.0,0.000159,2]
[420212703,1775785854214,-268.347184,0.000159,2]
[420212704,1775785854237,-268.347184,0.000159,2]
[420212705,1775785854247,-268.347184,0.000159,2]
[420212706,1775785854256,-268.347184,0.000159,2]
[420212707,1775785854271,-151.0,0.000159,2]
[420212708,1775785854281,-235.73088,0.000159,2]
[420212709,1775785854290,-151.0,0.000159,2]
[420212710,1775785854303,-151.0,0.000159,2]
[420212711,1775785854317,-151.0,0.000159,2]
[420212712,1775785854327,-151.0,0.000159,2]
[420212713,1775785854336,-151.0,0.000159,2]
[420212714,1775785854346,-151.0,0.000159,2]
[420212715,1775785854367,-231.773515,0.000159,2]
[420212716,1775785854375,-231.773515,0.000159,2]
[420212717,1775785854382,-231.773515,0.000159,2]
[420212718,1775785854393,-231.773524,0.000159,2]
[420212719,1775785854405,-151.0,0.000159,2]
[420212720,1775785854413,-151.0,0.000159,2]
[420212721,1775785854424,-172.920049,0.000159,2]
[420212722,1775785854435,-172.920049,0.000159,2]
[420212723,1775785854456,-172.920049,0.000159,2]
[420212724,1775785854464,-172.920049,0.000159,2]
[420212725,1775785854472,-172.920049,0.000159,2]
[420212726,1775785854481,-151.0,0.000159,2]
[420212727,1775785854503,-151.0,0.000159,2]
[420212728,1775785854510,-172.920049,0.000159,2]
[420212729,1775785854519,-172.920049,0.000159,2]
[420212730,1775785854526,-151.0,0.000159,2]
[420212731,1775785854549,-172.920043,0.000159,2]
[420212732,1775785854557,-151.0,0.000159,2]
[420212733,1775785854564,-151.0,0.000159,2]
[420212734,1775785854571,-151.0,0.000159,2]
[420212735,1775785854584,-151.0,0.000159,2]
[420212736,1775785854598,-151.0,0.000159,2]
[420212737,1775785854607,-151.0,0.000159,2]
[420212738,1775785854614,-212.326716,0.000159,2]
[420212739,1775785854621,-151.0,0.000159,2]
[420212740,1775785854633,-151.0,0.000159,2]
[420212741,1775785854642,-151.0,0.000159,2]
[420212742,1775785854650,-151.0,0.000159,2]
[420212743,1775785854657,-210.269897,0.000159,2]
[420212744,1775785854668,-151.0,0.000159,2]
[420212745,1775785854678,-151.0,0.000159,2]
[420212746,1775785854687,-210.269897,0.000159,2]
[420212747,1775785854699,-292.50747,0.000159,2]
[420212748,1775785854711,-151.0,0.000159,2]
[420212749,1775785854722,-210.269897,0.000159,2]
[420212750,1775785854730,-151.0,0.000159,2]
[420212751,1775785854749,-210.269899,0.000159,2]
[420212752,1775785854765,-151.0,0.000159,2]
[420212753,1775785854789,-151.0,0.000159,2]
[420212754,1775785854806,-256.831814,0.000159,2]
[420212755,1775785854819,-151.0,0.000159,2]
[420212756,1775785854847,-151.0,0.000159,2]
[420212757,1775785854890,-151.0,0.000159,2]
[420212758,1775785854909,-151.0,0.000159,2]
[420212759,1775785854935,-151.0,0.000159,2]
[420212760,1775785854945,-151.0,0.000159,2]
[420212761,1775785854954,-298.507833,0.000159,2]
[420212762,1775785854977,-151.0,0.000159,2]
[420212763,1775785854987,-151.0,0.000159,2]
[420212764,1775785854997,-151.0,0.000159,2]
[420212765,1775785855029,-157.46462094,0.000159,2]
[420212766,1775785855039,-236.53530428,0.000159,3]
[420212767,1775785855052,-568.03911161,0.000159,2]
[420212768,1775785855070,-151.0,0.000159,2]
[420212769,1775785855079,-151.0,0.000159,2]
[420212770,1775785855092,-151.0,0.000159,2]
[420212771,1775785855108,-280.914292,0.000159,2]
[420212772,1775785855118,-292.509865,0.000159,2]
[420212773,1775785855127,-151.0,0.000159,2]
[420212774,1775785855149,-151.0,0.000159,2]
[420212775,1775785855159,-151.0,0.000159,2]
[420212776,1775785855168,-151.0,0.000159,2]
[420212777,1775785855295,-211.769893,0.000159,2]
[420212778,1775785855309,-151.0,0.000159,2]
[420212779,1775785855322,-240.636657,0.000159,2]
[420212780,1775785855332,-488.81683227,0.000159,2]
[420212781,1775785855342,-25000.0,0.000159,3]
[420212782,1775785855353,-750.54982673,0.000159,2]
[420212783,1775785855362,-233.294558,0.000159,2]
[420212784,1775785855373,-190.877014,0.000159,2]
[420212785,1775785855384,-233.294558,0.000159,2]
[420212786,1775785855393,-151.0,0.000159,2]
[420212787,1775785855403,-233.294558,0.000159,2]
[420212788,1775785855414,-622.691617,0.000159,2]
[420212789,1775785855427,-153.770559,0.000159,2]
[420212790,1775785855438,-151.0,0.000159,2]
[420212791,1775785855447,-233.294558,0.000159,2]
[420212792,1775785855459,-622.691617,0.000159,2]
[420212793,1775785855471,-622.691617,0.000159,2]
[420212794,1775785855482,-413.7726,0.000159,2]
[420212795,1775785855499,-2000.0,0.000159,2]
[420212796,1775785855511,-622.691617,0.000159,2]
[420212797,1775785855520,-413.7726,0.000159,2]
[420212798,1775785855535,-151.0,0.000159,2]
[420212799,1775785855546,-151.0,0.000159,2]
[420212800,1775785855557,-413.7726,0.000159,2]
[420212801,1775785855567,-151.0,0.000159,2]
[420212802,1775785855576,-151.0,0.000159,2]
[420212803,1775785855590,-413.7726,0.000159,2]
[420212804,1775785855603,-151.0,0.000159,2]
[420212805,1775785855612,-199.786779,0.000159,2]
[420212806,1775785855624,-151.0,0.000159,2]
[420212807,1775785855637,-248.635341,0.000159,2]
[420212808,1775785855647,-199.786779,0.000159,2]
[420212809,1775785855668,-151.0,0.000159,2]
[420212810,1775785855677,-199.786779,0.000159,2]
[420212811,1775785855687,-151.0,0.000159,2]
[420212812,1775785855700,-152.28014,0.000159,2]
[420212813,1775785855717,-151.0,0.000159,2]
[420212814,1775785855726,-199.786779,0.000159,2]
[420212815,1775785855741,-605.178857,0.000159,2]
[420212816,1775785855754,-605.178857,0.000159,2]
[420212817,1775785855768,-605.178857,0.000159,2]
[420212818,1775785855777,-160.482107,0.000159,2]
[420212819,1775785855790,-605.178857,0.000159,2]
[420212820,1775785855805,-160.482107,0.000159,2]
[420212821,1775785855820,-160.482107,0.000159,2]
[420212822,1775785855830,-160.482107,0.000159,2]
[420212823,1775785855839,-151.0,0.000159,2]
[420212824,1775785855848,-151.0,0.000159,2]
[420212825,1775785855862,-151.0,0.000159,2]
[420212826,1775785855871,-151.0,0.000159,2]
[420212827,1775785855884,-151.0,0.000159,2]
[420212828,1775785855893,-151.0,0.000159,2]
[420212829,1775785855911,-151.0,0.000159,2]
[420212830,1775785855921,-151.0,0.000159,2]
[420212831,1775785855932,-151.0,0.000159,2]
[420212832,1775785855963,-161.166246,0.000159,2]
[420212833,1775785855980,-151.0,0.000159,2]
[420212834,1775785855997,-161.166246,0.000159,2]
[420212835,1775785856007,-161.166246,0.000159,2]
[420212836,1775785856018,-153.599312,0.000159,2]
[420212837,1775785856034,-161.166246,0.000159,2]
[420212838,1775785856052,-153.599312,0.000159,2]
[420212839,1775785856062,-153.599312,0.000159,2]
[420212840,1775785856084,-153.599312,0.000159,2]
[420212841,1775785856094,-193.774017,0.000159,2]
[420212842,1775785856110,-353.602754,0.000159,2]
[420212843,1775785856126,-151.0,0.000159,2]
[420212844,1775785856136,-193.774017,0.000159,2]
[420212845,1775785856153,-353.602754,0.000159,2]
[420212846,1775785856181,-151.0,0.000159,2]